bitfinex-derivatives/quotes_ETHF0:USTF0_20260118
["timestamp","ask_amount","ask_price","bid_price","bid_amount"]
[1768758301017,0.92374808,3336.7,3335.9,0.00274223]
[1768758301209,0.92374808,3336.6,3335.9,0.00274223]
[1768758301410,0.92374808,3336.5,3335.9,0.00274223]
[1768758301611,1.61495146,3337.0,3335.9,0.00274223]
[1768758321141,1.74528395,3337.0,3335.9,0.00274223]
[1768758321346,0.92408748,3336.9,3335.9,0.00274223]
[1768758330859,0.95918678,3336.7,3335.9,0.00274223]
[1768758331058,0.92408748,3336.6,3335.9,0.00274223]
[1768758332056,0.92408748,3336.5,3335.9,0.00274223]
[1768758332261,0.95918678,3336.9,3335.9,0.00274223]
[1768758332452,0.92511124,3336.8,3335.9,0.00274223]
[1768758332653,0.92511124,3336.7,3335.9,0.00274223]
[1768758332861,0.92511124,3336.6,3335.9,0.00274223]
[1768758333060,0.92511124,3336.5,3335.9,0.00274223]
[1768758333259,0.95918678,3336.9,3335.9,0.00274223]
[1768758333560,0.92511105,3336.8,3335.9,0.00274223]
[1768758333749,0.92511105,3336.7,3335.9,0.00274223]
[1768758333955,0.92511105,3336.6,3335.9,0.00274223]
[1768758334156,0.92511105,3336.5,3335.9,0.00274223]
[1768758334463,0.95918678,3336.9,3335.9,0.00274223]
[1768758334655,0.92511179,3336.8,3335.9,0.00274223]
[1768758334852,0.92511179,3336.7,3335.9,0.00274223]
[1768758335053,0.92511179,3336.6,3335.9,0.00274223]
[1768758335250,0.92511179,3336.5,3335.9,0.00274223]
[1768758335458,0.95918678,3336.9,3335.9,0.00274223]
[1768758335659,0.92511214,3336.8,3335.9,0.00274223]
[1768758335849,0.92511214,3336.7,3335.9,0.00274223]
[1768758336049,0.92511214,3336.6,3335.9,0.00274223]
[1768758336253,0.92511214,3336.5,3335.9,0.00274223]
[1768758336450,0.95918678,3336.9,3335.9,0.00274223]
[1768758336751,0.92511318,3336.8,3335.9,0.00274223]
[1768758337051,0.92511318,3336.7,3335.9,0.00274223]
[1768758337254,0.92511318,3336.6,3335.9,0.00274223]
[1768758337454,0.92511318,3336.5,3335.9,0.00274223]
[1768758337754,0.95918678,3336.9,3335.9,0.00274223]
[1768758337954,0.92511454,3336.8,3335.9,0.00274223]
[1768758338251,0.92511454,3336.7,3335.9,0.00274223]
[1768758338454,0.92511454,3336.6,3335.9,0.00274223]
[1768758338650,0.92511454,3336.5,3335.9,0.00274223]
[1768758338852,0.95918678,3336.8,3335.9,0.00274223]
[1768758339056,0.92511605,3336.7,3335.9,0.00274223]
[1768758339252,0.92511605,3336.6,3335.9,0.00274223]
[1768758339452,0.92511605,3336.5,3335.9,0.00274223]
[1768758339663,0.95918678,3336.8,3335.9,0.00274223]
[1768758339864,0.92511804,3336.7,3335.9,0.00274223]
[1768758340065,0.92511804,3336.6,3335.9,0.00274223]
[1768758340266,0.92511804,3336.5,3335.9,0.00274223]
[1768758340467,0.95918678,3336.8,3335.9,0.00274223]
[1768758340665,0.92511995,3336.7,3335.9,0.00274223]
[1768758340866,0.92511995,3336.6,3335.9,0.00274223]
[1768758341062,0.92511995,3336.5,3335.9,0.00274223]
[1768758341266,0.95918678,3336.8,3335.9,0.00274223]
[1768758341469,0.92512222,3336.7,3335.9,0.00274223]
[1768758341655,0.92512222,3336.6,3335.9,0.00274223]
[1768758341859,0.92512222,3336.5,3335.9,0.00274223]
[1768758342060,0.95918678,3336.8,3335.9,0.00274223]
[1768758342268,0.92512222,3336.7,3335.9,0.00274223]
[1768758342565,0.92512222,3336.6,3335.9,0.00274223]
[1768758342763,0.92512222,3336.5,3335.9,0.00274223]
[1768758342958,0.95918678,3336.8,3335.9,0.00274223]
[1768758343163,0.92512515,3336.7,3335.9,0.00274223]
[1768758343363,0.92512515,3336.6,3335.9,0.00274223]
[1768758343564,0.92512515,3336.5,3335.9,0.00274223]
[1768758343769,0.95918678,3336.8,3335.9,0.00274223]
[1768758343970,0.92512719,3336.7,3335.9,0.00274223]
[1768758344174,0.92512719,3336.6,3335.9,0.00274223]
[1768758344364,0.92512719,3336.5,3335.9,0.00274223]
[1768758344662,0.95918678,3336.8,3335.9,0.00274223]
[1768758344863,0.92512967,3336.7,3335.9,0.00274223]
[1768758345062,0.92512967,3336.6,3335.9,0.00274223]
[1768758345267,0.92512967,3336.5,3335.9,0.00274223]
[1768758345466,0.95918678,3336.8,3335.9,0.00274223]
[1768758345660,0.92513279,3336.7,3335.9,0.00274223]
[1768758345862,0.92513279,3336.6,3335.9,0.00274223]
[1768758346065,0.92513279,3336.5,3335.9,0.00274223]
[1768758346267,0.95918678,3336.8,3335.9,0.00274223]
[1768758346468,0.92513294,3336.7,3335.9,0.00274223]
[1768758346671,0.92513294,3336.6,3335.9,0.00274223]
[1768758346873,0.92513294,3336.5,3335.9,0.00274223]
[1768758347062,0.95918678,3336.8,3335.9,0.00274223]
[1768758347265,0.92513294,3336.7,3335.9,0.00274223]
[1768758347465,0.92513294,3336.6,3335.9,0.00274223]
[1768758347765,0.92513294,3336.5,3335.9,0.00274223]
[1768758347967,0.95918678,3336.8,3335.9,0.00274223]
[1768758348163,0.92513252,3336.7,3335.9,0.00274223]
[1768758348366,0.92513252,3336.6,3335.9,0.00274223]
[1768758348662,0.92513252,3336.5,3335.9,0.00274223]
[1768758348865,0.95918678,3336.8,3335.9,0.00274223]
[1768758349064,0.925144,3336.7,3335.9,0.00274223]
[1768758349367,0.925144,3336.6,3335.9,0.00274223]
[1768758349567,0.925144,3336.5,3335.9,0.00274223]
[1768758349767,0.95918678,3336.8,3335.9,0.00274223]
[1768758349971,0.92514387,3336.7,3335.9,0.00274223]
[1768758350174,0.92514387,3336.6,3335.9,0.00274223]
[1768758350478,0.92514387,3336.5,3335.9,0.00274223]
[1768758350671,0.95918678,3336.8,3335.9,0.00274223]
[1768758350871,0.92514397,3336.7,3335.9,0.00274223]
[1768758351071,0.92514397,3336.6,3335.9,0.00274223]
[1768758351267,0.92514397,3336.5,3335.9,0.00274223]
[1768758351469,0.95918678,3336.8,3335.9,0.00274223]
[1768758351675,0.92514661,3336.7,3335.9,0.00274223]
[1768758351875,0.92514661,3336.6,3335.9,0.00274223]
[1768758352077,0.92514661,3336.5,3335.9,0.00274223]
[1768758352277,0.95918678,3336.8,3335.9,0.00274223]
[1768758352478,0.92514703,3336.7,3335.9,0.00274223]
[1768758352677,0.92514703,3336.6,3335.9,0.00274223]
[1768758352874,0.92514703,3336.5,3335.9,0.00274223]
[1768758353078,0.95918678,3336.8,3335.9,0.00274223]
[1768758353278,0.92514742,3336.7,3335.9,0.00274223]
[1768758353467,0.92514742,3336.6,3335.9,0.00274223]
[1768758353673,0.92514742,3336.5,3335.9,0.00274223]
[1768758353869,0.92514742,3336.4,3335.9,0.00274223]
[1768758354075,0.95918678,3336.8,3335.9,0.00274223]
[1768758354273,0.92515826,3336.7,3335.9,0.00274223]
[1768758354475,0.92515826,3336.6,3335.9,0.00274223]
[1768758354681,0.92515826,3336.5,3335.9,0.00274223]
[1768758354882,0.92515826,3336.4,3335.9,0.00274223]
[1768758355187,0.95918678,3336.8,3335.9,0.00274223]
[1768758355481,0.92513801,3336.7,3335.9,0.00274223]
[1768758355679,0.92513801,3336.6,3335.9,0.00274223]
[1768758355882,0.92513801,3336.5,3335.9,0.00274223]
[1768758356182,0.92513801,3336.4,3335.9,0.00274223]
[1768758356383,0.95918678,3336.8,3335.9,0.00274223]
[1768758356583,0.92513488,3336.7,3335.9,0.00274223]
[1768758356789,0.92513488,3336.6,3335.9,0.00274223]
[1768758357082,0.92513488,3336.5,3335.9,0.00274223]
[1768758357282,0.95918678,3336.8,3335.9,0.00274223]
[1768758357482,0.92513011,3336.7,3335.9,0.00274223]
[1768758357681,0.92513011,3336.6,3335.9,0.00274223]
[1768758357979,0.92513011,3336.5,3335.9,0.00274223]
[1768758358182,0.92513011,3336.4,3335.9,0.00274223]
[1768758358384,0.95918678,3336.8,3335.9,0.00274223]
[1768758358680,0.92512846,3336.7,3335.9,0.00274223]
[1768758358883,0.92512846,3336.6,3335.9,0.00274223]
[1768758359083,0.92512846,3336.5,3335.9,0.00274223]
[1768758359283,0.92512846,3336.4,3335.9,0.00274223]
[1768758359484,0.95918678,3336.8,3335.9,0.00274223]
[1768758359681,0.92512665,3336.7,3335.9,0.00274223]
[1768758359984,0.95918678,3336.8,3335.9,0.00274223]
[1768758359985,0.92512665,3336.6,3335.9,0.00274223]
[1768758360186,0.92512665,3336.5,3335.9,0.00274223]
[1768758360383,0.95918678,3336.8,3335.9,0.00274223]
[1768758360578,0.92512576,3336.7,3335.9,0.00274223]
[1768758360777,0.92512576,3336.6,3335.9,0.00274223]
[1768758360985,0.92512576,3336.5,3335.9,0.00274223]
[1768758361285,0.92512502,3336.4,3335.9,0.00274223]
[1768758361487,0.95918678,3336.8,3335.9,0.00274223]
[1768758361686,0.9251246,3336.7,3335.9,0.00274223]
[1768758361986,0.9251246,3336.6,3335.9,0.00274223]
[1768758362288,0.9251246,3336.5,3335.9,0.00274223]
[1768758362481,0.95918678,3336.8,3335.9,0.00274223]
[1768758362780,0.92512436,3336.7,3335.9,0.00274223]
[1768758362979,0.92512436,3336.6,3335.9,0.00274223]
[1768758363181,0.92512436,3336.5,3335.9,0.00274223]
[1768758363480,0.95918678,3336.8,3335.9,0.00274223]
[1768758363779,0.92512512,3336.7,3335.9,0.00274223]
[1768758363980,0.92512512,3336.6,3335.9,0.00274223]
[1768758364180,0.92512512,3336.5,3335.9,0.00274223]
[1768758364478,0.95918678,3336.8,3335.9,0.00274223]
[1768758364679,0.9251261,3336.7,3335.9,0.00274223]
[1768758364980,0.9251261,3336.6,3335.9,0.00274223]
[1768758365179,0.9251261,3336.5,3335.9,0.00274223]
[1768758365379,0.95918678,3336.8,3335.9,0.00274223]
[1768758365585,0.92512651,3336.7,3335.9,0.00274223]
[1768758365787,0.92512651,3336.6,3335.9,0.00274223]
[1768758365988,0.92512651,3336.5,3335.9,0.00274223]
[1768758366190,0.95918678,3336.8,3335.9,0.00274223]
[1768758366389,0.92512724,3336.7,3335.9,0.00274223]
[1768758366685,0.95918678,3336.8,3335.9,0.00274223]
[1768758366686,0.92512724,3336.6,3335.9,0.00274223]
[1768758366889,0.92512724,3336.5,3335.9,0.00274223]
[1768758367088,0.95918678,3336.8,3335.9,0.00274223]
[1768758367288,0.92512789,3336.7,3335.9,0.00274223]
[1768758367489,0.92512789,3336.6,3335.9,0.00274223]
[1768758367680,0.92512789,3336.5,3335.9,0.00274223]
[1768758367880,0.95918678,3336.8,3335.9,0.00274223]
[1768758368081,0.92512216,3336.7,3335.9,0.00274223]
[1768758368282,0.92512216,3336.6,3335.9,0.00274223]
[1768758368490,0.92512216,3336.5,3335.9,0.00274223]
[1768758368788,0.95918678,3336.9,3335.9,0.00274223]
[1768758368989,0.92512257,3336.8,3335.9,0.00274223]
[1768758369287,0.92512257,3336.7,3335.9,0.00274223]
[1768758369488,0.92512257,3336.6,3335.9,0.00274223]
[1768758369689,0.92512257,3336.5,3335.9,0.00274223]
[1768758369890,2.70447073,3337.0,3335.9,0.00274223]
[1768758370089,0.92512231,3336.9,3335.9,0.00274223]
[1768758370385,0.92512231,3336.8,3335.9,0.00274223]
[1768758370576,0.92512231,3336.7,3335.9,0.00274223]
[1768758370781,0.92512231,3336.6,3335.9,0.00274223]
[1768758370982,0.92512231,3336.5,3335.9,0.00274223]
[1768758371280,2.70447073,3337.0,3335.9,0.00274223]
[1768758371477,0.92511891,3336.9,3335.9,0.00274223]
[1768758371691,0.92511891,3336.8,3335.9,0.00274223]
[1768758371882,0.92511891,3336.7,3335.9,0.00274223]
[1768758372178,0.92511891,3336.6,3335.9,0.00274223]
[1768758372381,0.92511891,3336.5,3335.9,0.00274223]
[1768758372582,2.70447073,3337.0,3335.9,0.00274223]
[1768758372881,0.92511768,3336.9,3335.9,0.00274223]
[1768758373078,0.92511768,3336.8,3335.9,0.00274223]
[1768758373294,0.92511768,3336.7,3335.9,0.00274223]
[1768758373482,0.92511768,3336.6,3335.9,0.00274223]
[1768758373690,0.92511768,3336.5,3335.9,0.00274223]
[1768758373879,0.95918678,3336.8,3335.9,0.00274223]
[1768758374080,0.92511649,3336.7,3335.9,0.00274223]
[1768758374279,0.92511649,3336.6,3335.9,0.00274223]
[1768758374486,0.92511649,3336.5,3335.9,0.00274223]
[1768758374690,0.95918678,3336.8,3335.9,0.00274223]
[1768758374990,0.92511714,3336.7,3335.9,0.00274223]
[1768758375184,0.92511714,3336.6,3335.9,0.00274223]
[1768758375484,0.92511714,3336.5,3335.9,0.00274223]
[1768758375784,0.95918678,3336.8,3335.9,0.00274223]
[1768758375984,0.9251172,3336.7,3335.9,0.00274223]
[1768758376179,0.9251172,3336.6,3335.9,0.00274223]
[1768758376383,0.9251172,3336.5,3335.9,0.00274223]
[1768758376577,0.95918678,3336.8,3335.9,0.00274223]
[1768758376792,0.9251173,3336.7,3335.9,0.00274223]
[1768758376991,0.95918678,3336.8,3335.9,0.00274223]
[1768758376992,0.9251173,3336.6,3335.9,0.00274223]
[1768758377188,0.9251173,3336.5,3335.9,0.00274223]
[1768758377394,0.95918678,3336.8,3335.9,0.00274223]
[1768758377587,0.92511773,3336.7,3335.9,0.00274223]
[1768758377787,0.92511773,3336.6,3335.9,0.00274223]
[1768758377990,0.92511773,3336.5,3335.9,0.00274223]
[1768758378289,0.95918678,3336.8,3335.9,0.00274223]
[1768758378489,0.92511819,3336.7,3335.9,0.00274223]
[1768758378787,0.92511819,3336.6,3335.9,0.00274223]
[1768758378990,0.92511819,3336.5,3335.9,0.00274223]
[1768758379289,0.95918678,3336.8,3335.9,0.00274223]
[1768758379488,0.92518215,3336.7,3335.9,0.00274223]
[1768758379688,0.92518215,3336.6,3335.9,0.00274223]
[1768758379886,0.92518215,3336.5,3335.9,0.00274223]
[1768758380088,0.95918678,3336.8,3335.9,0.00274223]
[1768758380287,0.92518279,3336.7,3335.9,0.00274223]
[1768758380487,0.92518279,3336.6,3335.9,0.00274223]
[1768758380795,0.92518279,3336.5,3335.9,0.00274223]
[1768758380989,0.95918678,3336.8,3335.9,0.00274223]
[1768758381289,0.92518225,3336.7,3335.9,0.00274223]
[1768758381491,0.92518225,3336.6,3335.9,0.00274223]
[1768758381692,0.92518225,3336.5,3335.9,0.00274223]
[1768758381891,0.95918678,3336.8,3335.9,0.00274223]
[1768758382095,0.92518142,3336.7,3335.9,0.00274223]
[1768758382295,0.92518142,3336.6,3335.9,0.00274223]
[1768758382496,0.92518142,3336.5,3335.9,0.00274223]
[1768758382694,0.95918678,3336.8,3335.9,0.00274223]
[1768758382894,0.92518052,3336.7,3335.9,0.00274223]
[1768758383088,0.92518052,3336.6,3335.9,0.00274223]
[1768758383288,0.92518052,3336.5,3335.9,0.00274223]
[1768758383490,0.95918678,3336.8,3335.9,0.00274223]
[1768758383691,0.92517956,3336.7,3335.9,0.00274223]
[1768758383993,0.92517956,3336.6,3335.9,0.00274223]
[1768758384193,0.92517956,3336.5,3335.9,0.00274223]
[1768758384489,0.95918678,3336.8,3335.9,0.00274223]
[1768758384689,0.92518248,3336.7,3335.9,0.00274223]
[1768758384888,0.92518248,3336.6,3335.9,0.00274223]
[1768758385085,0.92518248,3336.5,3335.9,0.00274223]
[1768758385389,0.95918678,3336.8,3335.9,0.00274223]
[1768758385588,0.92518624,3336.7,3335.9,0.00274223]
[1768758385784,0.92518624,3336.6,3335.9,0.00274223]
[1768758385990,0.92518624,3336.5,3335.9,0.00274223]
[1768758386188,0.95918678,3336.8,3335.9,0.00274223]
[1768758386389,0.92518831,3336.7,3335.9,0.00274223]
[1768758386596,0.92518831,3336.6,3335.9,0.00274223]
[1768758386790,0.92518831,3336.5,3335.9,0.00274223]
[1768758386996,0.95918678,3336.8,3335.9,0.00274223]
[1768758387197,0.92518831,3336.7,3335.9,0.00274223]
[1768758387401,0.92518831,3336.6,3335.9,0.00274223]
[1768758387602,0.92518831,3336.5,3335.9,0.00274223]
[1768758387802,0.95918678,3336.8,3335.9,0.00274223]
[1768758387997,0.92518852,3336.7,3335.9,0.00274223]
[1768758388197,0.92518852,3336.6,3335.9,0.00274223]
[1768758388406,0.92518852,3336.5,3335.9,0.00274223]
[1768758388606,0.95918678,3336.8,3335.9,0.00274223]
[1768758388810,0.92519076,3336.7,3335.9,0.00274223]
[1768758389006,0.92519076,3336.6,3335.9,0.00274223]
[1768758389210,0.92519076,3336.5,3335.9,0.00274223]
[1768758389504,0.95918678,3336.8,3335.9,0.00274223]
[1768758389702,0.9251936,3336.7,3335.9,0.00274223]
[1768758389903,0.9251936,3336.6,3335.9,0.00274223]
[1768758390108,0.9251936,3336.5,3335.9,0.00274223]
[1768758390300,0.95918678,3336.8,3335.9,0.00274223]
[1768758390506,0.92519375,3336.7,3335.9,0.00274223]
[1768758390705,0.92519375,3336.6,3335.9,0.00274223]
[1768758390909,0.92519375,3336.5,3335.9,0.00274223]
[1768758391110,0.95918678,3336.8,3335.9,0.00274223]
[1768758391310,0.92519398,3336.7,3335.9,0.00274223]
[1768758391513,0.92519398,3336.6,3335.9,0.00274223]
[1768758391717,0.92519398,3336.5,3335.9,0.00274223]
[1768758391917,0.95918678,3336.8,3335.9,0.00274223]
[1768758392216,0.92519604,3336.7,3335.9,0.00274223]
[1768758392416,0.92519604,3336.6,3335.9,0.00274223]
[1768758392610,0.92519604,3336.5,3335.9,0.00274223]
[1768758392810,0.95918678,3336.8,3335.9,0.00274223]
[1768758393010,0.92519763,3336.7,3335.9,0.00274223]
[1768758393207,0.92519763,3336.6,3335.9,0.00274223]
[1768758393412,0.92519763,3336.5,3335.9,0.00274223]
[1768758393712,1.74528395,3337.0,3335.9,0.00274223]
[1768758393908,0.92519901,3336.9,3335.9,0.00274223]
[1768758394108,0.92519901,3336.8,3335.9,0.00274223]
[1768758394319,0.92519901,3336.7,3335.9,0.00274223]
[1768758394510,0.92519901,3336.6,3335.9,0.00274223]
[1768758394703,0.92519901,3336.5,3335.9,0.00274223]
[1768758394908,1.74528395,3337.0,3335.9,0.00274223]
[1768758395117,0.92520079,3336.9,3335.9,0.00274223]
[1768758395416,0.92520079,3336.8,3335.9,0.00274223]
[1768758395614,0.92520079,3336.7,3335.9,0.00274223]
[1768758395811,0.92520079,3336.6,3335.9,0.00274223]
[1768758396114,0.92520079,3336.5,3335.9,0.00274223]
[1768758396315,1.74528395,3337.0,3335.9,0.00274223]
[1768758396517,0.92520444,3336.9,3335.9,0.00274223]
[1768758396717,0.92520444,3336.8,3335.9,0.00274223]
[1768758397016,0.92520444,3336.7,3335.9,0.00274223]
[1768758397216,0.92520444,3336.6,3335.9,0.00274223]
[1768758397514,0.92520444,3336.5,3335.9,0.00274223]
[1768758397714,1.74528395,3337.0,3335.9,0.00274223]
[1768758397916,0.92520669,3336.9,3335.9,0.00274223]
[1768758398111,0.92520669,3336.8,3335.9,0.00274223]
[1768758398312,0.92520669,3336.7,3335.9,0.00274223]
[1768758398612,0.92520669,3336.6,3335.9,0.00274223]
[1768758398812,0.92520669,3336.5,3335.9,0.00274223]
[1768758399009,1.74528395,3337.0,3335.9,0.00274223]
[1768758399212,0.92520709,3336.9,3335.9,0.00274223]
[1768758399416,0.92520709,3336.8,3335.9,0.00274223]
[1768758399621,0.92520709,3336.7,3335.9,0.00274223]
[1768758399917,1.74528395,3337.0,3335.9,0.00274223]
[1768758400117,0.92520775,3336.9,3335.9,0.00274223]
[1768758400315,0.92520775,3336.8,3335.9,0.00274223]
[1768758400516,0.92520775,3336.7,3335.9,0.00274223]
[1768758400718,0.92520775,3336.6,3335.9,0.00274223]
[1768758400915,0.92520775,3336.5,3335.9,0.00274223]
[1768758401117,1.74528395,3337.0,3335.9,0.00274223]
[1768758401318,0.92520877,3336.9,3335.9,0.00274223]
[1768758401510,0.92520877,3336.8,3335.9,0.00274223]
[1768758401706,0.92520877,3336.7,3335.9,0.00274223]
[1768758401920,0.92520877,3336.6,3335.9,0.00274223]
[1768758402121,0.92520877,3336.5,3335.9,0.00274223]
[1768758402321,1.74528395,3337.0,3335.9,0.00274223]
[1768758402523,0.92520909,3336.9,3335.9,0.00274223]
[1768758402723,0.92520909,3336.8,3335.9,0.00274223]
[1768758402919,0.92520909,3336.7,3335.9,0.00274223]
[1768758403120,0.92520909,3336.6,3335.9,0.00274223]
[1768758403318,0.92520909,3336.5,3335.9,0.00274223]
[1768758403522,1.74528395,3337.0,3335.9,0.00274223]
[1768758403821,0.92520949,3336.9,3335.9,0.00274223]
[1768758404018,0.92520949,3336.8,3335.9,0.00274223]
[1768758404223,0.92520949,3336.7,3335.9,0.00274223]
[1768758404421,0.92520949,3336.6,3335.9,0.00274223]
[1768758404618,0.92520949,3336.5,3335.9,0.00274223]
[1768758404816,1.74528395,3337.0,3335.9,0.00274223]
[1768758405016,0.92520879,3336.9,3335.9,0.00274223]
[1768758405222,0.92520879,3336.8,3335.9,0.00274223]
[1768758405416,0.92520879,3336.7,3335.9,0.00274223]
[1768758405616,0.92520879,3336.6,3335.9,0.00274223]
[1768758405817,0.92520879,3336.5,3335.9,0.00274223]
[1768758406125,1.61495146,3337.1,3335.9,0.00274223]
[1768758406315,0.92504855,3337.0,3335.9,0.00274223]
[1768758406520,0.92504855,3336.9,3335.9,0.00274223]
[1768758406817,0.92504855,3336.8,3335.9,0.00274223]
[1768758407014,1.61495146,3337.2,3335.9,0.00274223]
[1768758407015,0.92504855,3336.7,3335.9,0.00274223]
[1768758407226,0.92504855,3336.6,3335.9,0.00274223]
[1768758407412,1.61495146,3337.2,3335.9,0.00274223]
[1768758407826,2.53988688,3337.3,3335.9,0.145045]
[1768758408015,0.92493542,3337.2,3335.9,0.145045]
[1768758408222,0.92493542,3337.1,3335.9,0.145045]
[1768758408524,0.92493542,3337.0,3335.9,0.145045]
[1768758408723,0.92493542,3336.9,3335.9,0.145045]
[1768758409030,0.92493542,3336.8,3335.9,0.145045]
[1768758409227,1.75321832,3337.4,3335.9,0.145045]
[1768758409429,0.92289385,3337.3,3335.9,0.145045]
[1768758409619,0.92289385,3337.2,3335.9,0.145045]
[1768758409821,0.92289385,3337.1,3335.9,0.145045]
[1768758410019,0.92289385,3337.0,3335.9,0.145045]
[1768758410221,0.92289385,3336.9,3335.9,0.145045]
[1768758410519,0.13826686,3337.4,3335.9,0.145045]
[1768758410718,0.92273575,3337.3,3335.9,0.145045]
[1768758410918,0.92273575,3337.2,3335.9,0.145045]
[1768758411117,0.92273575,3337.1,3335.9,0.145045]
[1768758411428,0.92273575,3337.0,3335.9,0.145045]
[1768758411629,0.13826686,3337.4,3335.9,0.145045]
[1768758411630,0.92273575,3336.9,3335.9,0.145045]
[1768758411829,0.13826686,3337.4,3335.9,0.145045]
[1768758412026,0.92263372,3337.3,3335.9,0.145045]
[1768758412226,0.92263372,3337.2,3335.9,0.145045]
[1768758412531,0.92263372,3337.1,3335.9,0.145045]
[1768758412731,0.92263372,3337.0,3335.9,0.145045]
[1768758412933,0.92263372,3336.9,3335.9,0.145045]
[1768758413132,0.13826686,3337.4,3335.9,0.145045]
[1768758413327,0.92249149,3337.3,3335.9,0.145045]
[1768758413627,0.92249149,3337.2,3335.9,0.145045]
[1768758413828,0.92249149,3337.1,3335.9,0.145045]
[1768758414028,0.92249149,3337.0,3335.9,0.00274223]
[1768758414229,0.92249149,3336.9,3335.9,0.00274223]
[1768758414528,0.13826686,3337.4,3335.9,0.00274223]
[1768758414719,0.13832866,3337.3,3335.9,0.00274223]
[1768758414926,2.53738814,3337.4,3335.9,0.00274223]
[1768758414927,1.06076534,3337.2,3335.9,0.00274223]
[1768758415127,0.13832866,3337.0,3335.9,0.00274223]
[1768758415330,1.06076534,3336.9,3335.7,0.14995]
[1768758415530,0.92243668,3336.8,3335.7,0.14995]
[1768758416537,0.92243668,3336.8,3335.7,0.15217015]
[1768758421139,0.92243668,3336.8,3335.7,0.00222015]
[1768758436764,0.136308,3336.7,3335.7,0.00222015]
[1768758436955,0.92243668,3336.6,3335.7,0.00222015]
[1768758449172,0.92243668,3336.6,3334.7,4.403]
[1768758449173,1.08797954,3336.5,3334.7,0.27922924]
[1768758449367,1.05126106,3336.4,3334.7,0.27922924]
[1768758449562,1.05126106,3336.3,3334.7,0.27922924]
[1768758449773,0.92243668,3336.2,3334.7,0.27922924]
[1768758450163,0.92243668,3336.2,3334.7,0.28200519]
[1768758452976,1.88197337,3336.2,3334.8,0.95953669]
[1768758453171,0.92243668,3336.1,3334.8,0.95953669]
[1768758454185,0.95953669,3336.2,3334.8,0.95953669]
[1768758462083,0.12882438,3336.3,3334.7,0.28200519]
[1768758462084,0.95953669,3336.0,3334.7,0.28200519]
[1768758462583,0.95953669,3335.8,3334.7,0.28200519]
[1768758465482,0.95953669,3335.8,3334.7,0.15277595]
[1768758466676,1.61495146,3336.6,3335.1,1.0935429]
[1768758466880,0.95953669,3336.4,3335.1,0.13400621]
[1768758467076,0.92179074,3336.3,3335.1,0.13400621]
[1768758467282,0.92179074,3336.2,3335.1,0.13400621]
[1768758467592,0.92179074,3336.1,3335.1,0.13400621]
[1768758467788,0.92179074,3336.0,3335.1,0.13400621]
[1768758467981,0.95953669,3336.2,3335.1,0.13400621]
[1768758468181,0.92177788,3336.1,3335.1,0.13400621]
[1768758468388,0.92177788,3336.0,3335.1,0.13400621]
[1768758468591,0.95953669,3336.2,3335.1,0.13400621]
[1768758468792,0.92178305,3336.1,3335.1,0.13400621]
[1768758468984,0.92178305,3336.0,3335.1,0.13400621]
[1768758469282,0.95953669,3336.2,3335.1,0.13400621]
[1768758469482,0.92299711,3336.1,3335.1,0.13400621]
[1768758469686,0.92299711,3336.0,3335.1,0.13400621]
[1768758469992,0.95953669,3336.2,3335.1,0.13400621]
[1768758470191,0.92299733,3336.1,3335.1,0.13400621]
[1768758470391,0.92299733,3336.0,3335.1,0.13400621]
[1768758470583,0.95953669,3336.2,3335.1,0.13400621]
[1768758470783,0.92302975,3336.1,3335.1,0.13400621]
[1768758471091,0.92302975,3336.0,3335.1,0.13400621]
[1768758471390,0.95953669,3336.3,3335.1,0.13400621]
[1768758471594,0.9230776,3336.2,3335.1,0.13400621]
[1768758471785,0.9230776,3336.1,3335.1,0.13400621]
[1768758471984,0.9230776,3336.0,3335.1,0.13400621]
[1768758472184,0.95953669,3336.3,3335.1,0.13400621]
[1768758472392,0.92314163,3336.2,3335.1,0.13400621]
[1768758472592,0.92314163,3336.1,3335.1,0.13400621]
[1768758472892,0.92314163,3336.0,3335.1,0.13400621]
[1768758473091,0.95953669,3336.3,3335.1,0.13400621]
[1768758473292,0.92322439,3336.2,3335.1,0.13400621]
[1768758473491,0.92322439,3336.1,3335.1,0.13400621]
[1768758473690,0.92322439,3336.0,3335.1,0.13400621]
[1768758473895,0.95953669,3336.3,3335.1,0.13400621]
[1768758474190,0.92321121,3336.2,3335.1,0.13400621]
[1768758474391,0.92321121,3336.1,3335.1,0.13400621]
[1768758474589,0.92321121,3336.0,3335.1,0.13400621]
[1768758474890,0.95953669,3336.3,3335.1,0.13400621]
[1768758475091,0.92331732,3336.2,3335.1,0.13400621]
[1768758475395,0.92331732,3336.1,3335.1,0.13400621]
[1768758475693,0.95953669,3336.3,3335.1,0.13400621]
[1768758475694,0.92331732,3336.0,3335.1,0.13400621]
[1768758475896,0.95953669,3336.3,3335.1,0.13400621]
[1768758476193,0.9234476,3336.2,3335.1,0.13400621]
[1768758476391,0.9234476,3336.1,3335.1,0.13400621]
[1768758476592,0.9234476,3336.0,3335.1,0.13400621]
[1768758476786,0.95953669,3336.3,3335.1,0.13400621]
[1768758476987,0.92360658,3336.2,3335.1,0.13400621]
[1768758477189,0.92360658,3336.1,3335.1,0.13400621]
[1768758477392,0.92360658,3336.0,3335.1,0.13400621]
[1768758477585,0.95953669,3336.3,3334.9,0.95953669]
[1768758477785,0.92380422,3336.2,3334.9,0.95953669]
[1768758477987,0.92380422,3336.1,3334.9,0.95953669]
[1768758478185,0.92380422,3336.0,3334.9,0.95953669]
[1768758478484,0.92380422,3335.9,3334.9,0.95953669]
[1768758478780,0.95953669,3336.3,3334.9,0.95953669]
[1768758478983,0.92406573,3336.2,3334.9,0.95953669]
[1768758479193,0.92406573,3336.1,3334.9,0.95953669]
[1768758479393,0.92406573,3336.0,3334.9,0.95953669]
[1768758479696,0.92406573,3335.9,3334.9,0.95953669]
[1768758479898,2.57448815,3336.5,3334.9,0.95953669]
[1768758480189,0.95953669,3336.3,3334.9,0.95953669]
[1768758480390,0.92433292,3336.2,3334.9,0.95953669]
[1768758483094,0.95953669,3336.3,3334.9,0.95953669]
[1768758483289,0.92438095,3336.2,3334.9,0.95953669]
[1768758484585,0.92438095,3336.2,3334.9,1.09845274]
[1768758484790,0.92438095,3336.1,3334.9,1.09845274]
[1768758485091,0.92438095,3336.0,3334.9,1.09845274]
[1768758485290,0.92438095,3335.9,3334.9,1.09845274]
[1768758485591,0.95953669,3336.4,3334.9,1.09845274]
[1768758485810,3.498954,3336.4,3334.9,1.09845274]
[1768758485997,0.92446585,3336.3,3334.9,1.09845274]
[1768758487794,0.92446585,3336.3,3334.9,0.13891605]
[1768758487993,0.92446585,3336.3,3334.9,1.09845274]
[1768758488401,0.95953669,3336.2,3334.9,1.09845274]
[1768758488700,0.92446585,3336.1,3334.9,1.09845274]
[1768758490099,0.92446585,3336.1,3334.7,0.92542925]
[1768758490296,0.95953669,3335.6,3334.7,0.92542925]
[1768758490804,0.95953669,3335.8,3334.7,0.92542925]
[1768758490999,0.92476719,3335.7,3334.7,0.92542925]
[1768758491202,0.95953669,3335.8,3334.7,0.92542925]
[1768758491403,0.92481817,3335.7,3334.7,0.92542925]
[1768758491603,0.95953669,3336.0,3334.7,0.92542925]
[1768758491905,0.9248176,3335.9,3334.7,0.92542925]